[Event "Prague Festival Open 2022"]
[Site "Prague"]
[Date "2022.06.15"]
[Round "7.4"]
[White "Santiago, Yago De Moura"]
[Black "Niedbala, Bartlomiej"]
[Result "1-0"]
[ECO "E41"]
[WhiteElo "2498"]
[BlackElo "2384"]
[Annotator "TA"]
[PlyCount "79"]
[EventDate "2022.06.10"]
[EventType "swiss"]
[EventCountry "CZE"]
[SourceTitle "playchess.com"]
[Source "ChessBase"]
[SourceQuality "1"]
[TimeControl "40/5400+30:1800+30"]

{[%evp 21,79,0,0,-8,10,-30,-29,-111,-117,-121,-104,-104,-118,-104,-108,-138,-129,-184,-103,-97,-63,-70,-76,-76,-76,-82,-100,-83,-75,-87,-81,-89,0,-99,19,19,81,89,101,104,91,98,329,318,308,307,452,432,460,464,468,450,496,479,29971,311,29972,29973,29995,29996]} 1. d4 {[%emt 0:00:05]} Nf6 {[%emt 0:04:26]} 2. c4 {[%emt 0:00:20]} e6 {[%emt 0:00:19]} 3. Nc3 {[%emt 0:00:25]} Bb4 {[%emt 0:00:14]} 4. e3 {[%emt 0:00:31]} c5 {[%emt 0:00:13]} 5. Bd3 {[%emt 0:03:54]} Nc6 {[%emt 0:01:05]} 6. Nf3 {[%emt 0:03:12]} Bxc3+ {[%emt 0:01:06]} 7. bxc3 {[%emt 0:00:08]} d6 {[%emt 0:00:11]} 8. O-O {[%emt 0:06:34]} e5 {[%emt 0:02:23]} 9. Nd2 {[%emt 0:00:25]} O-O {[%emt 0:03:15]} 10. d5 {[%emt 0:03:47]} Ne7 {[%emt 0:01:21]} 11. Qc2 {[%emt 0:00:08]} Ng6 {[%emt 0:15:58]} 12. f4 {[%emt 0:10:31] E41: Nimzo-Indian: Rubinstein: 4...c5 5 Bd3, including Hübner Variation.} Ng4 {[%emt 0:08:02]} 13. Nf3 {[%emt 1:07:00]} (13. Ne4 $5 {[%cal Rf4f5]}) 13... f5 {[%emt 0:03:59][%cal Bf7f5,Bf5g4][%mdl 32] Hoping for ...e4.} 14. h3 {[%emt 0:00:00]} (14. Be2 $11) 14... e4 $17 {[%emt 0:18:45]} 15. hxg4 {[%emt 0:00:00]} exd3 {[%emt 0:00:16]} 16. Qxd3 {[%emt 0:00:00]} fxg4 {[%emt 0:00:07]} 17. Ng5 {[%emt 0:00:00] [#]} Qe8 $146 {[%emt 0:01:42]} ({Predecessor:} 17... Qf6 18. Bd2 h6 19. Ne4 Qf5 20. Qb1 Rd8 21. Be1 b6 22. Bg3 Ba6 23. Nd2 Qxb1 24. Raxb1 {1-0 (52) Wessman,R (2435)-Kiik,K (2365) Helsinki 1993}) 18. Qb1 {[%emt 0:00:00]} h6 {[%emt 0:08:20]} 19. Ne4 {[%emt 0:00:00]} (19. Ne6 $17 Bxe6 20. dxe6) 19... Qe7 {[%emt 0:02:48]} (19... Nh4 $19 20. g3 (20. Nxd6 Qh5 $17) 20... Nf3+ 21. Kg2 Qg6) 20. Ng3 {[%emt 0:00:00]} Qh4 {[%emt 0:02:19]} 21. Kf2 {[%emt 0:00:00]} ({Reject} 21. Qxg6 Qxg3 22. f5 (22. Qxd6 $2 Qh4 $19) 22... Rf6 23. Qe8+ Kh7 $17) 21... Ne5 {[%emt 0:02:52]} 22. Rh1 {[%emt 0:00:00]} Qf6 {[%emt 0:04:13]} 23. Qb3 {[%emt 0:00:00]} b5 {[%emt 0:07:27]} 24. cxb5 {[%emt 0:00:00]} c4 {[%emt 0:00:03]} 25. Qc2 {[%emt 0:00:00]} Nd3+ {[%emt 0:01:03]} 26. Kg1 {[%emt 0:00:00]} Bb7 {[%emt 0:01:00]} ({Black should try} 26... a6 $17 27. bxa6 Rxa6) 27. e4 {[%emt 0:00:00] [#]} (27. Rh5 $11) 27... Nxf4 {[%emt 0:02:10]} (27... Bxd5 $1 $17 {[%cal Oa8e8] aiming for ...Rae8!} 28. exd5 Rae8) 28. Nf5 $11 {[%emt 0:00:00]} Nxd5 {[%emt 0:04:08]} 29. Bxh6 $1 $16 {[%emt 0:00:00][%cal Bc1h6,Bh6g7,Bg7c3][%mdl 32]} Qxc3 {[%emt 0:02:38]} 30. Qxc3 {[%emt 0:00:00][%mdl 64] Remove Defender. Dancing on a razor blade.} Nxc3 {[%emt 0:00:02]} 31. Bxg7 {[%emt 0:00:00]} Rxf5 $2 {[%emt 0:01:48]} 32. Bxc3 $18 {[%emt 0:00:00]} Bxe4 {[%emt 0:01:33]} 33. Re1 {[%emt 0:00:00]} Bd5 {[%emt 0:00:25]} (33... Rxb5 $142 34. Rxe4 Rb1+ 35. Re1 Rxe1+ 36. Bxe1 Kf7) 34. Re7 {[%emt 0:00:00][%csl Gc3][%cal Rh1h8]} Kf8 {[%emt 0:00:18]} 35. Rc7 {[%emt 0:00:00]} Rg5 {[%emt 0:00:58] Against Bg7+} 36. Rhh7 {[%emt 0:00:00]} Rg8 {[%emt 0:00:31]} 37. Bf6 {[%emt 0:00:00] Threatens to win with Be7+.} Rb8 {[%emt 0:00:31]} (37... Rg6 $18) 38. Be7+ {[%emt 0:00:00]} Ke8 {[%emt 0:00:01]} 39. Bxd6 {[%emt 0:00:00]} Ra8 {[%emt 0:00:38]} 40. Rcd7 {[%emt 0:00:00] What a bad dream for Black.  Weighted Error Value: White=0.17 (very precise) /Black=0.59} 1-0

[Event "Prague Festival Open 2022"]
[Site "Prague"]
[Date "2022.06.15"]
[Round "7.5"]
[White "Mladek, Richard"]
[Black "Sankalp Gupta"]
[Result "1/2-1/2"]
[ECO "E51"]
[WhiteElo "2361"]
[BlackElo "2505"]
[Annotator "TA"]
[PlyCount "77"]
[EventDate "2022.06.10"]
[EventType "swiss"]
[EventCountry "CZE"]
[SourceTitle "playchess.com"]
[Source "ChessBase"]
[SourceQuality "1"]
[TimeControl "40/5400+30:1800+30"]

{[%evp 13,77,0,0,0,5,10,2,8,12,0,20,10,11,0,6,5,22,14,14,4,8,6,36,21,35,26,36,30,33,47,30,0,51,0,35,27,47,0,0,0,0,0,0,0,0,0,0,0,22,27,53,8,8,8,8,9,8,8,8,8,8,8,10,0,0,4]} 1. d4 {[%emt 0:00:02]} Nf6 {[%emt 0:02:48]} 2. c4 {[%emt 0:00:09]} e6 {[%emt 0:00:04]} 3. Nc3 {[%emt 0:00:05]} Bb4 {[%emt 0:00:05]} 4. e3 {[%emt 0:00:05]} O-O {[%emt 0:00:05]} 5. Bd2 {[%emt 0:00:04]} d5 {[%emt 0:00:12]} 6. Nf3 {[%emt 0:00:17]} b6 {[%emt 0:00:07]} 7. cxd5 {[%emt 0:00:12]} exd5 {[%emt 0:00:02]} 8. Rc1 {[%emt 0:00:14] E51: Nimzo-Indian: Rubinstein: 4...0-0 5 Nf3 d5.} Bb7 {[%emt 0:00:10] 8...Bb7 scores better than 8...a6.} 9. Bd3 {[%emt 0:00:09]} Be7 {[%emt 0:00:09]} 10. O-O {[%emt 0:01:02]} c5 {[%emt 0:00:14]} 11. dxc5 {[%emt 0:01:02]} bxc5 {[%emt 0:01:45]} 12. Re1 {[%emt 0:00:12]} Re8 {[%emt 0:00:13]} 13. Qb3 {[%emt 0:00:53] [#]} Qb6 $146 {[%emt 0:03:45]} ({Predecessor:} 13... Bc6 14. Qc2 Nbd7 15. b3 d4 16. Ne4 c4 17. Nxf6+ Nxf6 18. Nxd4 Bxg2 19. Kxg2 cxd3 20. Qxd3 {½-½ (63) Basso,P (2561)-Sonis,F (2483) Premium Chess Arena INT 2020}) 14. Na4 {[%emt 0:01:19]} Qxb3 {[%emt 0:00:03]} 15. axb3 {[%emt 0:00:07]} Ba6 {[%emt 0:00:07]} 16. Bf1 {[%emt 0:03:11]} Bxf1 {[%emt 0:01:39]} 17. Kxf1 {[%emt 0:00:05]} Na6 {[%emt 0:04:38]} 18. Bc3 {[%emt 0:03:51]} Reb8 {[%emt 0:14:39]} 19. Red1 {[%emt 0:14:39]} Rxb3 {[%emt 0:07:29]} 20. Bxf6 {[%emt 0:00:24]} Bxf6 {[%emt 0:07:23]} 21. Rxd5 {[%emt 0:08:31]} Rb4 {[%emt 0:06:07]} 22. b3 {[%emt 0:16:40]} Be7 {[%emt 0:06:22] Inhibits Rd6.} (22... Rxb3 $11 23. Rd6 (23. Nxc5 Rb5 $11) 23... Nb4) 23. Nd2 {[%emt 0:01:31] Pair of Knights!} (23. Rd7 $14 Bf8 24. Nd2) 23... Kf8 {[%emt 0:00:03]} (23... Rb7 $5 {[%cal Ra6b4]}) 24. Ke2 {[%emt 0:02:56]} g6 {[%emt 0:02:40]} 25. Nc3 {[%emt 0:09:14]} (25. Rd3 $14 {is superior.}) 25... Rb7 $11 {[%emt 0:01:58]} 26. Re5 {[%emt 0:00:19]} Nb4 {[%emt 0:03:53]} 27. Na4 {[%emt 0:04:35]} Rd8 {[%emt 0:00:08] [#] aiming for ...Nd3.} 28. Re4 {[%emt 0:04:24]} ({Don't play} 28. Nxc5 Bxc5 29. Rcxc5 (29. Rexc5 Nd3 $17) 29... Rbd7 $17) 28... Nd3 {[%emt 0:08:12]} 29. Rc2 {[%emt 0:00:19]} Rbd7 {[%emt 0:00:02]} 30. Nf3 {[%emt 0:02:17]} f5 {[%emt 0:00:55]} 31. Rec4 {[%emt 0:00:47]} g5 {[%emt 0:00:18]} 32. g4 {[%emt 0:05:31]} (32. Ne1 $5 {[%cal Re1d3]}) 32... fxg4 {[%emt 0:11:36] The position is equal.} 33. Rxg4 {[%emt 0:00:18]} h5 {[%emt 0:00:02]} 34. Re4 {[%emt 0:01:22]} g4 {[%emt 0:01:08]} 35. Ne5 {[%emt 0:02:00]} Nxe5 {[%emt 0:00:03]} 36. Rxe5 {[%emt 0:00:05]} Rd5 {[%emt 0:00:05]} 37. Rxd5 {[%emt 0:02:54]} Rxd5 {[%emt 0:00:02]} 38. e4 {[%emt 0:03:49]} Rd4 {[%emt 0:00:31]} 39. Nxc5 {[%emt 0:01:47] Weighted Error Value: White=0.08 (flawless) /Black=0.09 (flawless)} 1/2-1/2

[Event "Prague Festival Open 2022"]
[Site "Prague"]
[Date "2022.06.15"]
[Round "7.6"]
[White "Stremavicius, Titas"]
[Black "Seemann, Jakub"]
[Result "1/2-1/2"]
[ECO "A27"]
[WhiteElo "2508"]
[BlackElo "2363"]
[Annotator "TA"]
[PlyCount "68"]
[EventDate "2022.06.10"]
[EventType "swiss"]
[EventCountry "CZE"]
[SourceTitle "playchess.com"]
[Source "ChessBase"]
[SourceQuality "1"]
[TimeControl "40/5400+30:1800+30"]

{[%evp 9,68,10,55,42,52,41,51,56,62,62,58,53,54,52,53,41,39,39,58,34,38,24,59,36,39,12,6,15,23,24,27,0,17,10,29,39,47,0,0,0,2,0,0,-39,-50,-62,-42,-84,-92,-130,-131,-289,-291,-265,0,0,0,0,0,0,0]} 1. c4 {[%emt 0:00:04]} e5 {[%emt 0:00:13]} 2. Nc3 {[%emt 0:00:05]} d6 {[%emt 0:00:05]} 3. g3 {[%emt 0:02:34]} Nc6 {[%emt 0:00:07]} 4. Nf3 {[%emt 0:00:10]} Nd4 {[%emt 0:00:13]} 5. Bg2 {[%emt 0:05:05]} Nxf3+ {[%emt 0:01:16]} 6. Bxf3 {[%emt 0:00:47] [#] A27: English Opening: Three Knights Variation.} f5 $146 {[%emt 0:00:54]} ({Predecessor:} 6... c6 7. d4 exd4 8. Qxd4 Be6 9. O-O Bh3 10. Rd1 h5 11. Ne4 f6 12. Bf4 c5 13. Qd5 Qc7 14. Nxd6+ {1-0 (14) Molina,V (822)-Trebichalsky,R (642) LSS email 2012}) 7. d4 {[%emt 0:03:01]} e4 {[%emt 0:00:57]} 8. Bg2 {[%emt 0:00:10] White is slightly better.} Nf6 {[%emt 0:00:57]} 9. f3 {[%emt 0:06:38]} exf3 {[%emt 0:01:30]} 10. exf3 {[%emt 0:00:08]} Be7 {[%emt 0:03:08]} 11. O-O {[%emt 0:02:10]} O-O {[%emt 0:00:25]} 12. a3 {[%emt 0:00:07]} Be6 {[%emt 0:07:39]} 13. Qd3 {[%emt 0:00:52]} c6 {[%emt 0:13:00]} 14. d5 {[%emt 0:02:35]} cxd5 {[%emt 0:05:35]} 15. cxd5 {[%emt 0:00:10]} Bf7 {[%emt 0:04:25]} 16. Qxf5 {[%emt 0:07:37]} (16. Bh3 $5 {[%cal Rh3f5]}) 16... Bg6 {[%emt 0:02:35]} 17. Qf4 {[%emt 0:08:59]} Ne4 {[%emt 0:04:47]} 18. Qe3 {[%emt 0:00:37]} (18. Nxe4 Rxf4 19. Bxf4 Qb6+ 20. Kh1 Bxe4 21. fxe4 g5 $17) 18... Nxc3 {[%emt 0:03:17]} 19. Qxc3 {[%emt 0:00:10]} Bf6 {[%emt 0:00:12]} 20. Qb4 {[%emt 0:00:38]} Re8 {[%emt 0:04:27] Inhibits Be3.} 21. Bf4 {[%emt 0:02:16]} Re2 {[%emt 0:01:00]} (21... a5 $5 {[%cal Ra5b4]} 22. Qb5 (22. Qxb7 Re2 $17) (22. Qxd6 Qxd6 23. Bxd6 Bd3 $11) 22... Ra6 $11) 22. Rad1 {[%emt 0:04:07]} (22. Bxd6 $2 Rxb2 23. Qf4 Qb6+ 24. Kh1 Rxg2 $1 {[%mdl 512]} 25. Kxg2 Bxa1 $19) 22... Rc8 {[%emt 0:12:54] White must now prevent ...a5.} 23. Rd2 {[%emt 0:10:53]} ({But not} 23. Qxd6 $2 Rcc2 24. Qxd8+ Bxd8 $19) ({Not} 23. Bxd6 $2 Rxb2 24. Bh3 Rxb4 $19) ({Avoid the trap} 23. Qxb7 $2 Rcc2 24. Rd2 Rexd2 25. Bxd2 Rxd2 $19) 23... Rxd2 {[%emt 0:00:42]} 24. Bxd2 {[%emt 0:00:44]} Rc2 {[%emt 0:02:16]} 25. b3 {[%emt 0:04:52]} Bf7 {[%emt 0:06:17]} 26. Bf4 {[%emt 0:08:34]} Bxd5 {[%emt 0:01:33]} 27. Rd1 {[%emt 0:00:32]} Bc6 {[%emt 0:13:27]} 28. Rxd6 {[%emt 0:12:54] [#]} Qe8 {[%emt 0:04:30] Threatens to win with ...Qe2.} 29. Rxf6 {[%emt 0:01:50]} gxf6 {[%emt 0:01:25]} 30. Bf1 $2 {[%emt 0:00:02]} (30. Bh6 $17) 30... Bxf3 $19 {[%emt 0:02:07][%cal Oa7a5] aiming for ...a5!} 31. Bh6 {[%emt 0:05:31]} Bd5 $2 {[%emt 0:03:35]} (31... Qd8 $19 {...Kf7 is the strong threat.} 32. Bc4+ Kh8) 32. Qg4+ $1 $11 {[%emt 0:02:26] The position is equal.} Qg6 {[%emt 0:00:00]} 33. Qd7 {[%emt 0:00:07] The board is on fire.} Qxh6 {[%emt 0:00:36][%csl Gc2][%cal Rh6h2]} 34. Qxd5+ {[%emt 0:00:15]} Kh8 {[%emt 0:00:04] Weighted Error Value: White=0.20 (precise) /Black=0.17 (very precise)} 1/2-1/2

[Event "Prague Festival Open 2022"]
[Site "Prague"]
[Date "2022.06.15"]
[Round "7.7"]
[White "Sorm, Daniel"]
[Black "Popovic, Dusan"]
[Result "0-1"]
[ECO "E71"]
[WhiteElo "2306"]
[BlackElo "2480"]
[Annotator "TA"]
[PlyCount "84"]
[EventDate "2022.06.10"]
[EventType "swiss"]
[EventCountry "CZE"]
[SourceTitle "playchess.com"]
[Source "ChessBase"]
[SourceQuality "1"]
[TimeControl "40/5400+30:1800+30"]

{[%evp 10,84,39,39,42,35,92,23,34,7,27,1,10,0,25,8,46,0,0,0,0,2,13,10,23,-25,0,-37,-3,-96,-94,-120,-129,-137,-126,-130,-120,-136,-113,-116,-77,-143,-70,-70,-70,-360,-325,-322,-308,-392,-393,-372,-318,-319,-303,-442,-418,-513,-547,-547,-541,-534,-509,-650,-629,-747,-746,-663,-708,-840,-819,-800,-748,-779,-764,-754,-716]} 1. d4 {[%emt 0:01:43]} Nf6 {[%emt 0:00:07]} 2. c4 {[%emt 0:00:07]} g6 {[%emt 0:00:04]} 3. Nc3 {[%emt 0:00:06]} Bg7 {[%emt 0:00:04]} 4. e4 {[%emt 0:00:06]} d6 {[%emt 0:00:04]} 5. h3 {[%emt 0:00:23]} Nbd7 {[%emt 0:00:48]} 6. Bd3 {[%emt 0:05:31]} e5 {[%emt 0:03:47] E71: King's Indian: 4 e4 d6 5 h3.} 7. d5 {[%emt 0:00:06]} h5 {[%emt 0:01:41] [#]} (7... c6 $14) 8. g3 $146 {[%emt 0:12:18]} ({White should try} 8. Nf3 $16) ({Predecessor:} 8. Nf3 a5 9. Be3 Bh6 10. Qd2 Bxe3 11. fxe3 Qe7 12. O-O-O Nc5 13. Bc2 a4 14. Rhf1 {0-1 (60) Nikolaidis,I (2545)-Kanakaris,G (2372) Lamia 2021}) 8... c6 {[%emt 0:03:55] White has an edge.} 9. Nge2 {[%emt 0:00:37]} a5 {[%emt 0:19:22]} 10. Be3 {[%emt 0:05:45]} (10. Bg5 {is more complex.} Nc5 11. Kf1 Bd7 12. Kg2) 10... Nc5 {[%emt 0:17:33]} 11. Bc2 {[%emt 0:03:27]} cxd5 {[%emt 0:01:14]} 12. cxd5 {[%emt 0:02:35]} (12. Bxc5 $5 dxc5 13. exd5 $11 (13. Nxd5 Nxd5 14. Ba4+ Bd7 $11)) 12... Bh6 {[%emt 0:01:13]} 13. Bxh6 {[%emt 0:01:57]} (13. Bxc5 $5 dxc5 14. Ba4+ Bd7 15. Qd3 $14) 13... Rxh6 {[%emt 0:00:47]} 14. Qd2 {[%emt 0:00:29]} Rh8 {[%emt 0:00:48][%cal Ob7b5]} 15. Qe3 {[%emt 0:08:17]} Bd7 {[%emt 0:01:04]} 16. f4 {[%emt 0:00:28]} Qe7 {[%emt 0:03:47]} 17. a4 {[%emt 0:00:29] Prevents b5.} (17. fxe5 $142 Qxe5 18. Nd4) 17... Rc8 {[%emt 0:02:29]} 18. Kd2 {[%emt 0:04:09]} Kd8 {[%emt 0:10:51] White should prevent ...exf4.} 19. Raf1 {[%emt 0:05:45]} (19. Rae1 $1 $11) 19... Re8 $17 {[%emt 0:01:34][%cal Of6e4,Bh8e8,Be8e5,Be5e1][%mdl 32]} 20. f5 {[%emt 0:14:41]} gxf5 {[%emt 0:00:15]} 21. exf5 {[%emt 0:00:09]} e4 {[%emt 0:08:07][%cal Be5e4,Be4d3,Bd3d2][%mdl 32]} 22. Qd4 {[%emt 0:03:34]} Qe5 {[%emt 0:00:40]} 23. Ke3 {[%emt 0:02:15]} Qxd4+ {[%emt 0:02:44]} (23... Bxf5 24. Qxe5 Rxe5 25. Nd4 Nxd5+ 26. Nxd5 $16) 24. Kxd4 {[%emt 0:01:08]} Re5 {[%emt 0:00:24]} 25. Rf4 {[%emt 0:10:04]} ({White should play} 25. g4) 25... Nd3 {[%emt 0:09:26] Black is much more active.} ({Don't play} 25... Rxf5 26. Rxf5 Bxf5 27. Rf1 Ne6+ 28. dxe6 fxe6 29. Bxe4 Nxe4 30. Nxe4 $18) (25... Na6 $17 {aiming for ...b5.} 26. Rc1 Nb4 27. Bxe4 Rc5) 26. Bxd3 $15 {[%emt 0:07:02]} exd3 {[%emt 0:00:02]} 27. Nc1 {[%emt 0:00:20][%mdl 8192] [#] Loses the game.} (27. Kxd3 $15 Bxf5+ 28. Kd2) 27... Nxd5 $1 {[%emt 0:07:40][%mdl 512]} 28. Nxd5 {[%emt 0:01:19] [#]} d2 $1 {[%emt 0:01:07]} (28... Bc6 29. Rd1 Bxd5 30. Kxd3 $17) 29. Nc3 {[%emt 0:06:38] [#] And now Nd3 would win.} Re1 $1 {[%emt 0:00:43] Chess con chili.} ({Inferior is} 29... dxc1=R 30. Rxc1 Bxa4 31. Kd3 $17) 30. Nb3 {[%emt 0:00:54]} Rxh1 {[%emt 0:01:32]} 31. Nxd2 {[%emt 0:00:09]} Rxh3 {[%emt 0:01:03]} 32. Nde4 {[%emt 0:00:39]} (32. Nc4 {keeps fighting.} Rxc4+ 33. Kxc4) 32... Rh2 $19 {[%emt 0:00:34]} 33. Rh4 {[%emt 0:02:11]} Rxh4 {[%emt 0:00:34] Black is clearly winning.} 34. gxh4 {[%emt 0:00:04][%mdl 4096] Endgame KRB-KNN} Rc6 {[%emt 0:00:48]} 35. f6 {[%emt 0:01:05]} Be6 {[%emt 0:00:29]} 36. Nb5 {[%emt 0:01:09]} Kd7 {[%emt 0:00:15] ...Rc4+ is the strong threat.} 37. Ke3 {[%emt 0:00:25]} Rc2 {[%emt 0:00:49]} 38. Nexd6 {[%emt 0:00:22]} b6 {[%emt 0:00:11]} 39. Kf4 {[%emt 0:00:36]} Rg2 {[%emt 0:00:08]} 40. Ne4 {[%emt 0:00:21]} Rg4+ {[%emt 0:00:08]} 41. Ke5 {[%emt 0:30:21]} Rxh4 {[%emt 0:31:18]} 42. Nd4 {[%emt 0:00:49]} Rg4 {[%emt 0:01:21] Weighted Error Value: White=0.52/Black=0.13 (very precise)} 0-1

[Event "Prague Festival Open 2022"]
[Site "Prague"]
[Date "2022.06.15"]
[Round "7.8"]
[White "Docekal, Jan"]
[Black "Sedlak, Nikola"]
[Result "0-1"]
[ECO "A26"]
[WhiteElo "2244"]
[BlackElo "2476"]
[Annotator "TA"]
[PlyCount "54"]
[EventDate "2022.06.10"]
[EventType "swiss"]
[EventCountry "CZE"]
[SourceTitle "playchess.com"]
[Source "ChessBase"]
[SourceQuality "1"]
[TimeControl "40/5400+30:1800+30"]

{[%evp 23,54,3,24,23,23,14,9,16,29,13,18,26,14,0,36,32,36,36,28,26,35,30,35,31,36,27,35,-419,-408,-422,-424,-1061,-1085]} 1. c4 {[%emt 0:00:04]} Nf6 {[%emt 0:00:32]} 2. Nc3 {[%emt 0:00:14]} g6 {[%emt 0:00:36]} 3. g3 {[%emt 0:00:05]} Bg7 {[%emt 0:00:23]} 4. Bg2 {[%emt 0:00:05]} O-O {[%emt 0:00:30]} 5. Nf3 {[%emt 0:00:05]} d6 {[%emt 0:00:32]} 6. O-O {[%emt 0:00:10]} e5 {[%emt 0:00:54]} 7. d3 {[%emt 0:00:12]} Nc6 {[%emt 0:00:49]} 8. Rb1 {[%emt 0:00:31]} a5 {[%emt 0:00:28]} 9. a3 {[%emt 0:00:38][%cal Ba2a3,Ba3b4,Bb4b5][%mdl 32]} Nd4 {[%emt 0:03:45]} 10. b4 {[%emt 0:06:04]} axb4 {[%emt 0:00:19]} 11. axb4 {[%emt 0:00:09]} c6 {[%emt 0:04:51]} 12. b5 {[%emt 0:01:59]} Bg4 {[%emt 0:06:12]} 13. Nxd4 {[%emt 0:03:18] A26: English Opening vs King's Indian with ...Nc6 and d3.} exd4 {[%emt 0:00:11]} 14. Ne4 {[%emt 0:00:38]} Nxe4 {[%emt 0:01:01]} 15. Bxe4 {[%emt 0:00:13] [#] The position is equal.} Ra2 $146 {[%emt 0:03:34]} ({Predecessor:} 15... d5 16. Bg2 dxc4 17. bxc6 bxc6 18. dxc4 Ra2 19. Re1 Qa5 20. h3 Bf5 21. Rb2 Rxb2 22. Bxb2 {0-1 (78) Grochal,J (2196)-Perske,T (2377) Vlissingen 2016}) 16. Re1 {[%emt 0:01:32]} Qd7 {[%emt 0:05:51]} 17. bxc6 {[%emt 0:03:41]} bxc6 {[%emt 0:00:12]} 18. Rb6 {[%emt 0:00:25]} d5 {[%emt 0:04:06]} (18... Qa7 $5 {[%cal Ra7b6]} 19. Rb3 (19. Rxc6 Bd7 $15) 19... Rc8 $11) 19. cxd5 {[%emt 0:04:39]} cxd5 {[%emt 0:00:09]} 20. Bf3 {[%emt 0:03:25]} Bxf3 {[%emt 0:08:23]} 21. exf3 {[%emt 0:00:04]} Ra1 {[%emt 0:04:43] [#] And now ...Qc7 would win.} 22. Qc2 {[%emt 0:06:20] Inhibits Qc7.} Rc8 {[%emt 0:08:13]} 23. Qb2 {[%emt 0:00:58]} Qa7 {[%emt 0:00:31][%cal Oa1c1] ...Raxc1! is the strong threat.} 24. Rb5 {[%emt 0:08:17]} h5 {[%emt 0:10:20][%cal Oh5h4]} 25. Qd2 $2 {[%emt 0:11:56][%mdl 8192] [#]} ({But not} 25. Rxd5 Kh7 $11) (25. Kg2 $14 {keeps the upper hand.}) 25... Qa6 $19 {[%emt 0:10:57]} 26. Rb3 {[%emt 0:03:31]} ({Reject} 26. Rxd5 Qc6 27. Qb2 Rxc1 $19) 26... Qc6 {[%emt 0:00:38]} 27. Bb2 {[%emt 0:04:01]} (27. Kg2 $142 Rxc1 28. Rxc1 Qxc1 29. Qxc1 Rxc1 30. Rb5) 27... Qc2 {[%emt 0:00:16] Weighted Error Value: White=0.83/Black=0.08 (flawless)} 0-1